bitfinex/quotes_SOLUSD_20251216
["timestamp","ask_amount","ask_price","bid_price","bid_amount"]
[1765917350904,8.46213778,128.17,128.14,3.13678036]
[1765917352019,27.30748224,128.17,128.12,7.80486001]
[1765917352210,0.66,128.16,128.13,3.13678036]
[1765917352915,0.66,128.16,128.13,0.7]
[1765917353117,0.66,128.16,128.13,2.43678036]
[1765917353617,0.66,128.16,128.13,3.80503348]
[1765917353802,0.66,128.16,128.13,4.50503348]
[1765917354114,7.80335544,128.15,128.13,4.50503348]
[1765917354316,7.80335544,128.15,128.13,0.7]
[1765917354501,8.46335544,128.15,128.13,3.80503348]
[1765917355720,7.80335544,128.15,128.13,3.80503348]
[1765917355892,7.80335544,128.15,128.13,4.50503348]
[1765917357514,7.80335544,128.15,128.14,3.80503348]
[1765917358119,7.80299658,128.16,128.15,0.7]
[1765917358287,7.80299658,128.16,128.15,3.80503348]
[1765917358492,8.46299658,128.16,128.15,3.80503348]
[1765917358717,8.46299658,128.16,128.14,3.80503348]
[1765917359013,8.46299658,128.16,128.13,0.7]
[1765917359315,8.46299658,128.16,128.14,3.80503348]
[1765917359815,8.46299658,128.16,128.15,3.80503348]
[1765917360186,7.80240098,128.17,128.15,3.80503348]
[1765917360390,0.1,128.18,128.17,0.7]
[1765917360618,7.90152909,128.18,128.17,3.80503348]
[1765917361394,0.1,128.18,128.17,3.80503348]
[1765917361596,7.90152909,128.18,128.17,3.80503348]
[1765917362217,0.1,128.18,128.17,3.80503348]
[1765917362401,0.76,128.18,128.17,3.80503348]
[1765917362713,0.1,128.18,128.17,4.50503348]
[1765917363309,0.1,128.18,128.17,0.7]
[1765917363514,0.1,128.18,128.17,4.50503348]
[1765917364399,0.1,128.18,128.15,16.36301443]
[1765917364715,0.1,128.18,128.17,3.80503348]
[1765917365094,0.1,128.18,128.17,4.52503348]
[1765917365296,0.1,128.18,128.16,0.72]
[1765917365497,0.1,128.18,128.16,3.80503348]
[1765917365498,0.77,128.18,128.16,3.80503348]
[1765917365697,0.77,128.18,128.14,7.80368678]
[1765917365698,0.77,128.18,128.14,8.56]
[1765917365921,8.47213778,128.17,128.15,3.80503348]
[1765917366125,8.47213778,128.17,128.14,9.28]
[1765917366338,0.67,128.16,128.14,8.56]
[1765917366538,0.67,128.16,128.15,3.80503348]
[1765917366943,0.67,128.16,128.14,12.36503348]
[1765917367115,7.80213778,128.17,128.15,3.80503348]
[1765917367303,8.47213778,128.17,128.15,3.80503348]
[1765917368329,0.67,128.16,128.15,3.80503348]
[1765917368525,27.30748224,128.17,128.14,12.36503348]
[1765917368708,0.67,128.16,128.14,12.36503348]
[1765917369031,0.1,128.18,128.16,0.72]
[1765917369323,0.1,128.18,128.17,13.08503348]
[1765917374128,0.77,128.18,128.17,8.56]
[1765917374304,0.1,128.18,128.17,9.28]
[1765917375405,0.1,128.18,128.17,13.08312323]
[1765917376103,0.1,128.18,128.17,9.28]
[1765917376436,0.1,128.18,128.17,13.08312323]
[1765917376805,0.1,128.18,128.17,12.36312323]
[1765917377306,0.1,128.18,128.17,13.08312323]
[1765917378330,0.1,128.18,128.17,20.88526101]
[1765917378535,0.1,128.19,128.18,0.72]
[1765917378730,0.1,128.23,128.19,0.72]
[1765917378920,0.1,128.23,128.22,4.52312323]
[1765917380011,0.1,128.23,128.22,12.32221853]
[1765917382133,0.1,128.23,128.22,20.88221853]
[1765917384232,0.1,128.26,128.23,0.72]
[1765917384406,0.1,128.26,128.25,4.52312323]
[1765917386034,0.1,128.26,128.25,12.32039418]
[1765917386423,0.1,128.27,128.26,0.72]
[1765917386625,0.1,128.27,128.26,13.08312323]
[1765917387833,0.1,128.27,128.26,4.52312323]
[1765917388041,0.1,128.27,128.26,13.08312323]
[1765917388217,0.1,128.27,128.26,20.87978625]
[1765917396047,0.81,128.27,128.26,8.54]
[1765917396243,0.1,128.27,128.26,20.13978625]
[1765917396542,0.81,128.27,128.26,20.13978625]
[1765917396845,0.1,128.27,128.26,20.13978625]
[1765917399949,0.1,128.27,128.26,20.81978625]
[1765917402447,0.1,128.27,128.26,11.59978625]
[1765917402651,0.81,128.27,128.25,7.79702105]
[1765917402825,0.81,128.27,128.21,19.49815692]
[1765917403021,0.71,128.26,128.22,20.14185688]
[1765917403221,0.71,128.24,128.22,20.14185688]
[1765917403653,0.71,128.24,128.23,3.80312323]
[1765917405347,19.59059342,128.27,128.23,3.80312323]
[1765917405348,7.79735107,128.25,128.23,3.80312323]
[1765917405550,0.71,128.24,128.23,3.80312323]
[1765917406151,0.71,128.24,128.23,11.60161032]
[1765917406331,0.71,128.25,128.23,3.80312323]
[1765917407336,0.71,128.25,128.24,3.80312323]
[1765917407731,0.1,128.27,128.24,13.02312323]
[1765917407932,0.1,128.27,128.26,3.80312323]
[1765917408339,0.1,128.27,128.26,20.13978625]
[1765917408541,0.1,128.27,128.26,20.81978625]
[1765917409358,0.1,128.27,128.26,20.13978625]
[1765917410539,0.1,128.27,128.26,16.33666302]
[1765917410747,0.1,128.27,128.26,20.13978625]
[1765917411742,0.81,128.27,128.26,16.33666302]
[1765917412077,0.81,128.27,128.26,20.13978625]
[1765917412465,0.81,128.27,128.26,12.34312323]
[1765917412766,0.1,128.27,128.26,20.13978625]
[1765917413365,0.81,128.27,128.26,12.34312323]
[1765917413662,0.1,128.27,128.26,20.13978625]
[1765917413867,0.81,128.27,128.26,20.13978625]
[1765917415441,0.1,128.27,128.26,18.76678518]
[1765917416768,0.1,128.27,128.26,19.44678518]
[1765917419749,4.07201471,128.36,128.27,8.80994492]
[1765917419948,0.1,128.39,128.35,2.43012216]
[1765917419949,0.81,128.39,128.35,2.43012216]
[1765917420257,0.81,128.39,128.34,2.43012216]
[1765917420258,0.1,128.39,128.37,2.43012216]
[1765917420471,0.1,128.39,128.38,10.97012216]
[1765917421069,0.1,128.39,128.38,11.65012216]
[1765917421443,0.1,128.39,128.38,9.22]
[1765917421776,0.1,128.39,128.38,23.50308516]
[1765917422147,0.1,128.39,128.38,14.96308516]
[1765917422386,0.1,128.39,128.38,23.50308516]
[1765917423059,0.1,128.39,128.38,17.00937529]
[1765917423361,0.1,128.39,128.38,23.50308516]
[1765917425169,0.1,128.39,128.38,14.96308516]
[1765917425370,0.1,128.39,128.38,22.82308516]
[1765917425674,0.1,128.39,128.38,23.51308516]
[1765917429605,0.1,128.39,128.38,14.97308516]
[1765917429762,0.1,128.39,128.38,23.51308516]
[1765917431181,3.29902873,128.45,128.41,0.69]
[1765917431371,3.29902873,128.45,128.4,10.43767296]
[1765917431372,3.29902873,128.45,128.44,6.49370987]
[1765917431559,3.29902873,128.45,128.44,20.76976965]
[1765917431961,3.96902873,128.45,128.44,20.76976965]
[1765917432481,3.29902873,128.45,128.44,15.03370987]
[1765917432663,3.96902873,128.45,128.44,8.54]
[1765917433053,3.96902873,128.45,128.44,15.03370987]
[1765917433252,3.96902873,128.45,128.44,8.54]
[1765917433457,3.96902873,128.45,128.44,15.03370987]
[1765917434872,3.29902873,128.45,128.44,23.5094464]
[1765917435072,3.29902873,128.45,128.44,29.22896135]
[1765917437187,3.29902873,128.45,128.44,23.5094464]
[1765917437432,3.29902873,128.45,128.44,22.8194464]
[1765917437695,3.29902873,128.45,128.44,23.5094464]
[1765917439378,3.29902873,128.45,128.44,17.01573653]
[1765917439577,3.29902873,128.45,128.44,23.5094464]
[1765917442091,3.29902873,128.45,128.44,29.21366176]
[1765917443402,3.29902873,128.45,128.44,27.56349745]
[1765917445084,3.29902873,128.45,128.44,25.14172467]
[1765917445284,3.29902873,128.45,128.44,22.71995189]
[1765917445486,3.29902873,128.45,128.44,13.48995189]
[1765917445666,3.29902873,128.45,128.44,24.45190813]
[1765917448873,3.29902873,128.45,128.44,25.14190813]
[1765917451583,3.29902873,128.45,128.44,22.71995189]
[1765917451898,3.29902873,128.45,128.44,25.14190813]
[1765917452468,3.29902873,128.45,128.44,24.45190813]
[1765917452668,3.29902873,128.45,128.44,25.14190813]
[1765917452887,3.29902873,128.45,128.44,15.91190813]
[1765917453082,3.29902873,128.45,128.44,24.45190813]
[1765917453274,3.29902873,128.45,128.44,25.14190813]
[1765917453476,3.96902873,128.45,128.44,22.02995189]
[1765917453784,3.29902873,128.45,128.44,18.74769277]
[1765917454102,3.29902873,128.45,128.44,24.46564618]
[1765917455108,3.98902873,128.45,128.44,24.46564618]
[1765917455398,3.29902873,128.45,128.44,15.92564618]
[1765917455601,3.98902873,128.45,128.44,24.46564618]
[1765917456992,3.29902873,128.45,128.44,24.46564618]
[1765917458484,3.98902873,128.45,128.44,5.71795341]
[1765917458688,3.98902873,128.45,128.44,16.67990965]
[1765917459207,3.98902873,128.45,128.44,14.25795341]
[1765917459517,3.98902873,128.45,128.44,8.54]
[1765917459809,0.69,128.44,128.43,10.96195624]
[1765917460010,0.69,128.44,128.43,16.71135629]
[1765917461017,0.69,128.44,128.43,24.49769904]
[1765917461386,0.69,128.44,128.43,16.71135629]
[1765917463003,0.69,128.44,128.43,24.49769904]
[1765917463580,0.69,128.44,128.43,10.96195624]
[1765917465586,3.29902873,128.45,128.43,19.40829899]
[1765917465808,3.29902873,128.45,128.44,2.42195624]
[1765917466308,0.69,128.44,128.41,2.42195624]
[1765917466512,0.69,128.44,128.43,2.42195624]
[1765917466818,3.98902873,128.45,128.43,18.74829899]
[1765917467125,3.98902873,128.45,128.44,2.42195624]
[1765917469093,3.98902873,128.45,128.43,16.3261641]
[1765917469094,0.69,128.44,128.43,10.96195624]
[1765917469296,0.69,128.44,128.43,2.42195624]
[1765917469904,0.69,128.44,128.42,2.42195624]
[1765917470226,0.69,128.44,128.42,8.54]
[1765917470588,0.69,128.44,128.4,10.20988389]
[1765917470798,0.69,128.44,128.4,10.96195624]
[1765917471392,0.69,128.43,128.4,18.74953215]
[1765917472412,0.69,128.42,128.4,10.96195624]
[1765917473304,0.69,128.42,128.4,18.7500194]
[1765917475505,0.69,128.42,128.4,20.11685109]
[1765917475820,0.69,128.42,128.4,16.32806316]
[1765917476122,0.69,128.42,128.4,20.11685109]
[1765917477622,0.69,128.42,128.41,3.78878793]
[1765917477999,0.69,128.42,128.4,20.11685109]
[1765917478838,0.69,128.42,128.41,3.78878793]
[1765917479043,0.69,128.42,128.4,16.32806316]
[1765917479247,0.69,128.42,128.41,3.78878793]
[1765917479941,0.69,128.42,128.4,12.32878793]
[1765917480140,0.69,128.41,128.4,8.54]
[1765917480322,0.69,128.41,128.37,12.32878793]
[1765917480523,0.69,128.4,128.37,8.54]
[1765917481329,0.69,128.4,128.38,3.78878793]
[1765917481542,0.69,128.4,128.37,16.98992111]
[1765917481543,0.69,128.41,128.39,3.78878793]
[1765917481837,0.69,128.41,128.4,3.78878793]
[1765917485428,0.72,128.4,128.39,8.54]
[1765917486022,0.72,128.4,128.38,3.78878793]
[1765917486217,0.72,128.4,128.38,11.57782745]
[1765917486423,0.72,128.41,128.39,3.78878793]
[1765917487227,8.50759687,128.41,128.39,3.78878793]
[1765917487545,0.72,128.4,128.39,3.78878793]
[1765917488539,0.72,128.4,128.39,12.32878793]
[1765917488953,0.72,128.42,128.39,20.82747775]
[1765917489264,8.50634275,128.43,128.41,3.78878793]
[1765917489550,0.72,128.44,128.42,3.78878793]
[1765917490720,11.08433721,128.45,128.43,3.78878793]
[1765917490721,11.80433721,128.45,128.43,3.78878793]
[1765917491240,0.72,128.44,128.42,7.78680662]
[1765917491542,0.72,128.44,128.43,3.78878793]
[1765917492334,11.80433721,128.45,128.43,3.78878793]
[1765917492835,11.80433721,128.45,128.42,7.78680662]
[1765917492836,4.01902873,128.45,128.44,12.32878793]
[1765917493025,4.01902873,128.45,128.44,8.54]
[1765917493947,4.01902873,128.45,128.44,12.32878793]
[1765917495622,4.01902873,128.45,128.44,8.54]
[1765917497245,4.01902873,128.45,128.44,20.82452446]
[1765917497246,3.29902873,128.45,128.44,20.82452446]
[1765917499836,3.29902873,128.45,128.44,16.32573653]
[1765917500040,0.72,128.44,128.41,8.54]
[1765917500751,7.78627866,128.44,128.41,8.54]
[1765917500919,0.72,128.43,128.41,8.54]
[1765917503055,8.5063619,128.43,128.41,8.54]
[1765917503458,0.72,128.42,128.36,0.71]
[1765917503628,0.72,128.42,128.38,3.78878793]
[1765917504053,0.72,128.41,128.37,20.82843244]
[1765917504360,0.72,128.4,128.37,20.82843244]
[1765917504526,0.72,128.4,128.38,3.78878793]
[1765917507657,0.72,128.4,128.37,17.03964451]
[1765917507849,0.72,128.4,128.38,3.78878793]
[1765917509678,0.72,128.4,128.38,11.57812619]
[1765917509847,8.50757529,128.41,128.39,3.78878793]
[1765917512029,0.72,128.42,128.38,4.49878793]
[1765917513971,8.49755548,128.41,128.38,12.28802413]
[1765917514258,8.49755548,128.41,128.39,3.78878793]
[1765917515562,0.66,128.42,128.38,8.4992362]
[1765917515739,0.66,128.42,128.38,12.28914784]
[1765917515950,0.66,128.42,128.39,3.78991164]
[1765917516152,0.66,128.42,128.38,8.4492362]
[1765917516353,0.66,128.42,128.39,3.78991164]
[1765917516564,8.44755548,128.41,128.39,3.78991164]
[1765917516953,8.44755548,128.41,128.38,8.4492362]
[1765917517261,8.44755548,128.41,128.39,3.78991164]
[1765917518973,8.44755548,128.41,128.38,4.44991164]
[1765917520166,8.44755548,128.41,128.39,3.78991164]
[1765917521251,8.44755548,128.41,128.38,4.44991164]
[1765917521646,8.44755548,128.41,128.38,12.23913067]
[1765917522376,0.66,128.43,128.39,4.44991164]
[1765917523365,0.66,128.41,128.39,3.78991164]
[1765917523573,0.66,128.41,128.38,12.23913067]
[1765917524080,0.66,128.41,128.39,0.66]
[1765917524282,0.66,128.41,128.35,10.43767296]
[1765917524582,0.66,128.41,128.36,12.98991164]
[1765917524583,0.66,128.4,128.36,12.98991164]
[1765917525169,0.66,128.4,128.37,4.44991164]
[1765917525366,7.78876859,128.39,128.37,4.44991164]
[1765917526283,8.44876859,128.39,128.37,3.78991164]
[1765917527583,0.66,128.4,128.36,12.98991164]
[1765917528166,0.66,128.39,128.36,8.54]
[1765917529189,0.66,128.39,128.36,12.32991164]
[1765917529727,7.78937529,128.38,128.36,8.54]
[1765917529990,0.66,128.37,128.36,8.54]
[1765917530890,0.66,128.37,128.34,12.32991164]
[1765917531311,0.66,128.37,128.34,8.54]
[1765917532379,8.45058896,128.36,128.34,8.54]
[1765917532902,8.45058896,128.36,128.34,12.32991164]
[1765917534986,0.66,128.35,128.34,8.54]
[1765917536507,8.45119594,128.35,128.34,8.54]
[1765917539306,8.45119594,128.35,128.33,2.42747054]
[1765917540204,8.45119594,128.35,128.32,16.33297646]
[1765917540205,8.45119594,128.35,128.32,16.99297646]
[1765917540382,8.45119594,128.35,128.33,3.08747054]
[1765917540805,7.79064621,128.36,128.34,2.42747054]
[1765917540984,7.79064621,128.36,128.34,3.08747054]
[1765917541177,8.45064621,128.36,128.34,3.08747054]
[1765917541376,8.45064621,128.36,128.33,0.66]
[1765917541700,0.66,128.35,128.33,3.08747054]
[1765917542406,8.45064621,128.36,128.33,3.08747054]
[1765917542609,0.66,128.35,128.3,2.42747054]
[1765917542800,7.79301745,128.32,128.28,10.22256003]
[1765917542980,0.66,128.31,128.29,11.62747054]
[1765917543183,8.45301745,128.32,128.29,11.62747054]
[1765917543884,8.45301745,128.32,128.29,19.4222059]
[1765917544085,8.48249861,128.33,128.3,3.13747054]
[1765917544286,0.69,128.32,128.29,17.04473536]
[1765917544584,0.69,128.32,128.3,2.42747054]
[1765917545095,8.48312848,128.32,128.29,19.4722059]
[1765917547613,8.48312848,128.32,128.3,2.42747054]
[1765917549111,8.48312848,128.32,128.29,11.67747054]
[1765917549312,0.69,128.31,128.29,10.96747054]
[1765917549700,0.69,128.31,128.29,11.67747054]
[1765917550100,8.48312848,128.32,128.29,11.67747054]
[1765917550412,8.48312848,128.32,128.29,19.47227772]
[1765917550617,0.69,128.31,128.29,17.04480718]
[1765917550814,0.69,128.31,128.29,8.54]
[1765917550994,0.69,128.31,128.29,10.96747054]
[1765917551499,0.69,128.31,128.29,8.54]
[1765917551906,8.48374845,128.31,128.29,8.54]
[1765917552786,8.48374845,128.31,128.29,10.96747054]
[1765917553710,8.48374845,128.31,128.29,8.54]
[1765917554732,7.79374845,128.31,128.29,8.54]
[1765917554900,0.69,128.3,128.29,8.54]
[1765917555822,8.48374845,128.31,128.29,8.54]
[1765917556516,0.69,128.31,128.29,8.54]
[1765917557925,7.79423226,128.3,128.29,8.54]
[1765917558109,8.48423226,128.3,128.29,8.54]
[1765917558512,0.69,128.29,128.27,11.16747054]
[1765917559416,0.69,128.29,128.27,11.87747054]
[1765917560036,7.79544745,128.28,128.27,11.16747054]
[1765917561029,7.79544745,128.28,128.26,0.2]
[1765917561030,0.69,128.27,128.26,0.2]
[1765917561232,3.11747054,128.27,128.26,0.2]
[1765917561943,0.69,128.27,128.26,0.2]
[1765917562113,8.48605519,128.27,128.26,0.2]
[1765917563428,10.91352573,128.27,128.26,0.2]
[1765917563818,8.48605519,128.27,128.26,0.2]
[1765917564134,27.28406609,128.28,128.27,0.71]
[1765917564430,27.97406609,128.28,128.26,3.33747054]
[1765917565021,27.28406609,128.28,128.26,3.33747054]
[1765917565236,27.97406609,128.28,128.26,3.33747054]
[1765917566138,27.97406609,128.28,128.27,2.42747054]
[1765917566139,7.79544745,128.28,128.27,2.42747054]
[1765917566313,7.79493376,128.29,128.28,0.71]
[1765917566641,7.79362481,128.31,128.29,0.71]
[1765917566817,7.79362481,128.31,128.29,3.13747054]
[1765917568521,0.69,128.3,128.28,3.13747054]
[1765917568724,27.96768684,128.31,128.28,2.42747054]
[1765917568927,27.96768684,128.31,128.29,0.71]
[1765917569536,27.96768684,128.31,128.29,3.13747054]
[1765917570036,27.27768684,128.31,128.29,2.42747054]
[1765917570237,27.27556109,128.32,128.3,3.13747054]
[1765917570450,27.96556109,128.32,128.3,2.42747054]
[1765917572451,27.96556109,128.32,128.3,3.13747054]
[1765917574785,27.96556109,128.32,128.29,3.08747054]
[1765917575461,27.96556109,128.32,128.29,2.42747054]
[1765917575756,27.96556109,128.32,128.29,3.08747054]
[1765917576968,27.96556109,128.32,128.29,0.66]
[1765917577175,0.67,128.31,128.28,2.42747054]
[1765917577467,0.67,128.31,128.27,2.42747054]
[1765917577639,2.42747054,128.31,128.26,2.62747054]
[1765917577846,0.67,128.29,128.26,0.2]
[1765917578157,0.67,128.28,128.26,0.2]
[1765917578666,7.79605519,128.27,128.26,0.2]
[1765917578871,8.46605519,128.27,128.26,0.2]
[1765917590272,10.89743598,128.27,128.26,0.2]
[1765917590571,8.46605519,128.27,128.26,0.2]
[1765917590759,10.89743598,128.27,128.26,0.2]
[1765917593481,8.46605519,128.27,128.26,0.2]
[1765917593671,10.89743598,128.27,128.26,0.2]
[1765917595788,8.46605519,128.27,128.26,0.2]
[1765917596003,7.79605519,128.27,128.26,0.2]
[1765917596496,7.79605519,128.27,128.26,0.86]
[1765917597766,27.28414752,128.28,128.26,0.86]
[1765917599560,19.48870007,128.28,128.26,0.86]
[1765917599761,20.15870007,128.28,128.26,0.86]
[1765917600161,19.48870007,128.28,128.26,0.86]
[1765917600564,27.28414752,128.28,128.26,0.86]
[1765917601182,27.95414752,128.28,128.26,0.86]
[1765917601586,27.28414752,128.28,128.26,3.99786273]
[1765917601785,27.28414752,128.28,128.26,0.2]
[1765917601965,0.67,128.27,128.26,0.2]
[1765917602878,8.46605519,128.27,128.26,0.2]
[1765917604087,7.79605519,128.27,128.26,0.2]
[1765917604671,21.09386284,128.27,128.26,1e-08]
[1765917604886,0.69,128.23,128.21,0.2]
[1765917605075,0.69,128.22,128.21,0.2]
[1765917605607,18.97767296,128.24,128.21,0.89]
[1765917605608,0.69,128.23,128.21,0.89]
[1765917606105,0.69,128.23,128.21,0.2]
[1765917606279,4.48786273,128.23,128.21,0.2]
[1765917607309,7.7990953,128.22,128.21,0.2]
[1765917608025,8.4890953,128.22,128.21,0.2]
[1765917608320,12.28695803,128.22,128.21,0.2]
[1765917609988,43.87243864,128.22,128.21,1e-08]
[1765917610425,48.56030137,128.22,128.21,1e-08]
[1765917610625,0.69,128.18,128.15,0.69]
[1765917611085,11.12767296,128.19,128.15,0.69]
[1765917612100,27.30535183,128.18,128.15,0.69]
[1765917612302,27.99535183,128.18,128.15,0.69]
[1765917612506,28.04145039,128.2,128.17,0.69]
[1765917612716,9.49994492,128.23,128.2,0.69]
[1765917613029,19.93761788,128.23,128.2,0.69]
[1765917613327,0.69,128.22,128.2,0.69]
[1765917613621,27.98788959,128.22,128.19,3.79786273]
[1765917613825,27.98788959,128.22,128.19,4.48786273]
[1765917614123,27.29788959,128.22,128.19,0.69]
[1765917614728,27.98788959,128.22,128.19,0.69]
[1765917614906,31.09575232,128.22,128.17,3.79786273]
[1765917615232,0.69,128.21,128.18,0.69]
[1765917615828,7.80031201,128.2,128.18,0.69]
[1765917616028,27.99109204,128.2,128.17,3.79786273]
[1765917616225,27.99109204,128.2,128.17,0.69]
[1765917616606,0.69,128.19,128.16,0.69]
[1765917617931,7.80152909,128.18,128.16,0.69]
[1765917618133,7.80152909,128.18,128.16,4.48786273]
[1765917618313,7.80152909,128.18,128.17,0.69]
[1765917619633,20.19078003,128.2,128.17,0.69]
[1765917619832,27.99322177,128.19,128.16,4.48786273]
[1765917620530,27.30322177,128.19,128.17,0.69]
[1765917621531,27.30322177,128.19,128.16,4.48786273]
[1765917621532,27.99322177,128.19,128.16,4.48786273]
[1765917621905,27.30322177,128.19,128.17,0.69]
[1765917623032,27.30322177,128.19,128.17,4.48786273]
[1765917623336,7.80031201,128.2,128.15,7.80306034]
[1765917623508,7.80031201,128.2,128.18,4.48786273]
[1765917624603,7.80031201,128.2,128.18,0.69]
[1765917624802,7.80031201,128.2,128.18,4.48786273]
[1765917625029,7.80031201,128.2,128.19,0.69]
[1765917626931,27.29994282,128.21,128.19,0.69]
[1765917627536,27.98994282,128.21,128.19,0.69]
[1765917627923,27.29994282,128.21,128.19,0.69]
[1765917629239,27.98994282,128.21,128.19,0.69]
[1765917630038,27.98994282,128.21,128.19,4.48786273]
[1765917630039,7.79970361,128.21,128.19,4.48786273]
[1765917630333,7.79970361,128.21,128.19,3.79786273]
[1765917630541,7.79970361,128.21,128.19,4.48786273]
[1765917630938,27.98683356,128.22,128.19,4.48786273]
[1765917633825,27.29683356,128.22,128.16,20.16043069]
[1765917634041,0.67,128.21,128.17,4.48786273]
[1765917634927,0.67,128.2,128.16,13.04786273]
[1765917635320,9.47994492,128.2,128.15,4.49786273]
[1765917635525,0.67,128.19,128.16,0.7]
[1765917636024,27.30535183,128.18,128.16,0.7]
[1765917636439,27.97535183,128.18,128.15,4.49786273]
[1765917637443,27.30535183,128.18,128.15,4.49786273]
[1765917637632,27.30535183,128.18,128.15,3.79786273]
[1765917637844,27.30535183,128.18,128.16,0.7]
[1765917639326,27.30535183,128.18,128.16,4.49786273]
[1765917639544,7.80152909,128.18,128.16,4.49786273]
[1765917639744,7.80101578,128.19,128.18,0.7]
[1765917639948,27.30213418,128.2,128.18,0.7]
[1765917640649,7.80031201,128.2,128.18,3.79786273]
[1765917640850,7.80031201,128.2,128.19,0.7]
[1765917641550,19.4983675,128.22,128.2,0.7]
[1765917641551,7.79996991,128.21,128.2,0.7]
[1765917642247,27.2974628,128.22,128.2,0.7]
[1765917647371,7.7990953,128.22,128.2,0.7]
[1765917647560,7.7990953,128.22,128.21,0.7]
[1765917647864,7.79836592,128.24,128.22,0.7]
[1765917648032,7.79836592,128.24,128.23,4.49786273]
[1765917648354,19.49268901,128.26,128.24,0.7]
[1765917648355,27.28935203,128.26,128.24,0.7]
[1765917650337,103.4,128.33,128.26,0.7]
[1765917650536,9.47994492,128.32,128.28,0.7]
[1765917650758,9.47994492,128.32,128.28,4.49786273]
[1765917650759,8.80994492,128.32,128.28,4.49786273]
[1765917650965,11.10767296,128.31,128.28,0.7]
[1765917651644,31.74342382,128.32,128.28,0.7]
[1765917652054,27.94556109,128.32,128.28,0.7]
[1765917652267,35.81556109,128.32,128.29,0.7]
[1765917652845,36.48556109,128.32,128.29,0.7]
[1765917653867,35.81556109,128.32,128.29,0.7]
[1765917654051,36.48556109,128.32,128.29,0.7]
[1765917655045,0.67,128.31,128.28,0.7]
[1765917656770,40.28342382,128.32,128.28,0.7]
[1765917657148,40.28224364,128.32,128.28,0.7]
[1765917658965,7.79301745,128.32,128.29,0.7]
[1765917659164,22.30520367,128.33,128.3,0.7]
[1765917659366,0.1,128.34,128.31,0.7]
[1765917659568,7.89192593,128.34,128.31,0.7]
[1765917660474,7.89192593,128.34,128.32,0.7]
[1765917661051,0.1,128.34,128.32,0.7]
[1765917663250,0.1,128.34,128.3,2.42840941]
[1765917663573,0.1,128.34,128.31,0.7]
[1765917664565,0.1,128.34,128.32,0.7]
[1765917665065,0.1,128.34,128.33,0.7]
[1765917665254,0.1,128.34,128.33,10.9208196]
[1765917665452,0.1,128.34,128.33,0.7]
[1765917666144,0.1,128.34,128.33,3.12840941]
[1765917666779,0.1,128.34,128.33,0.7]
[1765917666961,0.1,128.34,128.33,10.9208196]
[1765917668378,0.1,128.34,128.33,8.49241019]
[1765917668677,0.1,128.34,128.33,0.7]
[1765917675375,0.81,128.34,128.3,0.7]
[1765917675575,0.1,128.34,128.28,24.43980588]
[1765917675885,3.13840941,128.31,128.28,0.7]
[1765917676186,0.71,128.28,128.25,9.24]
[1765917676365,10.43767296,128.31,128.26,0.7]
[1765917676560,3.13840941,128.3,128.26,0.7]
[1765917677455,7.79483981,128.29,128.26,0.7]
[1765917677656,7.79483981,128.29,128.27,0.7]
[1765917677882,7.79444929,128.3,128.27,0.7]
[1765917679066,8.50444929,128.3,128.27,0.7]
[1765917679685,10.9328587,128.3,128.27,0.7]
[1765917679992,0.71,128.29,128.25,17.03707889]
[1765917680181,29.70843937,128.3,128.26,0.7]
[1765917680182,30.41843937,128.3,128.26,0.7]
[1765917681194,27.28002996,128.3,128.27,0.7]
[1765917681395,27.99002996,128.3,128.27,0.7]
[1765917681577,30.41843937,128.3,128.27,0.7]
[1765917681892,27.99002996,128.3,128.27,0.7]
[1765917682076,7.79444929,128.3,128.27,2.42840941]
[1765917682282,7.79444929,128.3,128.28,0.7]
[1765917682680,19.58023555,128.34,128.3,0.7]